Cogmind - Beta 17 @@@ ROGUE MODE // 2026.07.16 @ 08:04:09 // Winter2019/RPGLIKE Player: Gallgagger Result: Self-destructed Performance ------------- Evolutions (1) 500 Regions Visited (3) 600 Robots Destroyed (0) 0 Value Destroyed (0) 0 Prototype IDs (0) 0 Alien Tech Used (0) 0 Bonus (200) 200 TOTAL SCORE: 1300 Bonus ------- Pacifist 200 Cogmind --------- Core Integrity 389/600 Matter 235/300 Energy 100/100 System Corruption 0% Temperature Cool (0) Movement Flying (40) Location -9/Mines Parts ------- > --- POWER (1) -------- (None) > --- PROPULSION (1) --- Flight Unit > --- UTILITY (1) ------ (None) > --- WEAPON (1) ------- (None) > --- INVENTORY (0) ---- (None) Peak State ------------ > --- POWER ------------ (None) > --- PROPULSION ------- Flight Unit > --- UTILITY ---------- (None) > --- WEAPON ----------- (None) > --- INVENTORY -------- (None) [Rating: 1] Favorites ----------- Power None Propulsion Flight Unit Flight Unit Flight Unit Utility None Weapon None Build | -11 -10 -9 -9 ------- Run | Yrd Mat Mat Min Slots Evolved . | . . . . Power . | . . . . Propulsion . | . . . . Utility . | . . . . Weapon . | . . . . Parts Attached 1 | . 1 . . Power . | . . . . Engine . | . . . . Core . | . . . . Reactor . | . . . . Propulsion 1 | . 1 . . Treads . | . . . . Leg . | . . . . Wheel . | . . . . Hover . | . . . . Flight 1 | . 1 . . Utility . | . . . . Device . | . . . . Storage . | . . . . Processor . | . . . . Hackware . | . . . . Protection . | . . . . Artifact . | . . . . Weapon . | . . . . Energy Gun . | . . . . Energy Cannon . | . . . . Ballistic Gun . | . . . . Ballistic Cannon . | . . . . Launcher . | . . . . Special Weapon . | . . . . Impact Weapon . | . . . . Slashing Weapon . | . . . . Piercing Weapon . | . . . . Special Melee Weapon . | . . . . Unidentified Prototypes . | . . . . Parts Lost . | . . . . Power . | . . . . Propulsion . | . . . . Utility . | . . . . Weapon . | . . . . Highest Loss Streak . | . . . . To Critical Strikes . | . . . . Average Backups . | . . . . Power . | . . . . Propulsion . | . . . . Utility . | . . . . Weapon . | . . . . Tool/Special . | . . . . Unused Backups . | . . . . Power . | . . . . Propulsion . | . . . . Utility . | . . . . Weapon . | . . . . Tool/Special . | . . . . Average Slot Usage (%) 18 | . 4 25 . Flight 18 | . 4 25 . Peak Build Rating 1 | . 1 1 . Average Rating . | . . 1 . On Entrance . | . . 1 1 Avg Prop Armor Cover (%) . | . . . . Naked Turns 46 | . 46 . . Heaviest Build . | . . . . Greatest Support 4 | 3 4 4 . Greatest Overweight (x) . | . . . . Average Overweight (x) . | . . . . Largest Inventory Capacity . | . . . . Average Capacity . | . . . . Most Carried . | . . . . Average Carried . | . . . . Final Capacity . | . . . . Final Carried . | . . . . Class Distribution -------------------- 100% | Mutant Dominant Class ---------------- Mutant | -10/Materials Mutant | -9/Materials Mutant | -9/Mines Resources | -11 -10 -9 -9 ----------- Run | Yrd Mat Mat Min Matter Collected 143 | 61 . 82 . Remotely . | . . . . Salvage Created . | . . . . Parts . | . . . . Haulers Intercepted . | . . . . Recyclers Shooed . | . . . . Parts Field Recycled . | . . . . Retrieved Matter . | . . . . Parts Self-Destructed . | . . . . Prevented . | . . . . Parts Restored . | . . . . Kills | -11 -10 -9 -9 ------- Run | Yrd Mat Mat Min Combat Hostiles Destroyed . | . . . . Classes Destroyed . | . . . . Best Kill Streak . | . . . . Combat Bots Only . | . . . . Max Kills in Single Turn . | . . . . Gunslinging . | . . . . Exploded . | . . . . Melee . | . . . . Uniques/NPCs Destroyed . | . . . . Combat | -11 -10 -9 -9 -------- Run | Yrd Mat Mat Min Hostile Shots Fired 28 | . . 28 . Missed 13 | . . 13 . Hits 15 | . . 15 . Projectile 15 | . . 15 . Damage Taken 218 | 8 . 210 . Core 211 | 8 . 203 . Absorbed by Shields . | . . . . Redirected to Core 23 | . . 23 . Core Remaining (%) 98 | 98 98 . . Volleys Fired . | . . . . Largest . | . . . . Hottest . | . . . . Shots Fired . | . . . . Gun . | . . . . Cannon . | . . . . Launcher . | . . . . Special . | . . . . Kinetic . | . . . . Thermal . | . . . . Explosive . | . . . . Electromagnetic . | . . . . Robot Hit Streak . | . . . . Robot Miss Streak . | . . . . Penetration Max . | . . . . Secondary Targets . | . . . . Shots Hit Robots . | . . . . Core Hits . | . . . . Critical Kills . | . . . . Critical Parts Destroyed . | . . . . Critical Strikes . | . . . . Melee Attacks . | . . . . Impact . | . . . . Slashing . | . . . . Piercing . | . . . . Sneak Attacks . | . . . . Combat Hostiles . | . . . . Follow-up Attacks . | . . . . Damage Inflicted 17 | 17 . . . Guns . | . . . . Cannons . | . . . . Explosions . | . . . . Melee . | . . . . Ramming 17 | 17 . . . Kinetic . | . . . . Thermal . | . . . . Explosive . | . . . . Electromagnetic . | . . . . Impact . | . . . . Slashing . | . . . . Piercing . | . . . . Highest Corruption . | . . . . Average Corruption . | . . . . Corruption Purged . | . . . . Corruption Blocked . | . . . . Overload Shots . | . . . . Overflow Damage . | . . . . Projectiles . | . . . . Explosions . | . . . . Melee . | . . . . Knockbacks . | . . . . Impact . | . . . . Kinetic . | . . . . Secondary . | . . . . Self-Inflicted Damage 8 | 8 . . . Shots . | . . . . Rammed 1 | 1 . . . Targets Rammed 1 | 1 . . . Kicked . | . . . . Crushed . | . . . . Highest Temperature . | . . . . Average Temperature . | . . . . Received Heat Transfer 60 | . . 60 . Siege Activations . | . . . . Martial Activations . | . . . . Shielding Activations . | . . . . Robots Disrupted . | . . . . Combat Hostiles . | . . . . Robots Corrupted . | . . . . Combat Hostiles . | . . . . Parts Fried . | . . . . Impact Corruptions . | . . . . Robots Melted . | . . . . Combat Hostiles . | . . . . Parts Melted . | . . . . Heat Transferred . | . . . . Parts Sabotaged . | . . . . Parts Stolen . | . . . . Parts Stripped . | . . . . Power Chain Reactions . | . . . . Alert | -11 -10 -9 -9 ------- Run | Yrd Mat Mat Min Maximum Alert Level . | . . . . Low Security (%) 100 | 100 100 100 . Level 1 . | . . . . Level 2 . | . . . . Level 3 . | . . . . Level 4 . | . . . . Level 5 . | . . . . High Security . | . . . . Max Security . | . . . . Peak Influence 85 | . . 85 . Initial 28 | . . . 28 Average 16 | . . 23 . Influence Increases 121 | . . 121 . Successful Hack 16 | . . 16 . Partial Spotted 60 | . . 60 . Lose Combat Pursuer 45 | . . 45 . Influence Decreases 93 | . . 46 47 Entered New Map 47 | . . . 47 Time Decay 46 | . . 46 . Squads Dispatched 3 | . . 3 . Investigation . | . . . . Extermination . | . . . . Reinforcement 3 | . . 3 . Assault . | . . . . Garrison . | . . . . Intercept . | . . . . Searches Triggered . | . . . . Construction Impeded . | . . . . Haulers Reinforced . | . . . . Active Scanning Responses . | . . . . Cargo Convoy Interrupts . | . . . . Stealth | -11 -10 -9 -9 --------- Run | Yrd Mat Mat Min Distress Signals 1 | . . 1 . Communications Jammed . | . . . . Distress Signals . | . . . . Times Spotted 14 | . 2 12 . Peak Tracking Total 7 | . 2 7 . Tactical Retreats 2 | . . 2 . Traps | -11 -10 -9 -9 ------- Run | Yrd Mat Mat Min Traps Triggered 1 | . . 1 . Indirectly . | . . . . Trap Hack Attempts . | . . . . Triggered . | . . . . Disarmed . | . . . . Reprogrammed . | . . . . Reused . | . . . . Traps Extracted . | . . . . Installed . | . . . . Triggered . | . . . . Machines | -11 -10 -9 -9 ---------- Run | Yrd Mat Mat Min Machines Disabled . | . . . . Max in Single Turn . | . . . . Machines Repaired . | . . . . Machines Dismantled . | . . . . Machines Sabotaged . | . . . . Overloaded Fab Kills . | . . . . Hacking | -11 -10 -9 -9 --------- Run | Yrd Mat Mat Min Machines Accessed 2 | . 1 1 . Terminals 2 | . 1 1 . Fabricators . | . . . . Repair Stations . | . . . . Recycling Units . | . . . . Scanalyzers . | . . . . Garrison Access . | . . . . Total Hacks 5 | . 3 2 . Successful 2 | . . 2 . Failed 3 | . 3 . . Catastrophic 1 | . 1 . . Database Lockouts . | . . . . Manual 8 | . 6 2 . Terminals 5 | . 3 2 . Fabricators . | . . . . Repair Stations . | . . . . Recycling Units . | . . . . Scanalyzers . | . . . . Garrison Access . | . . . . Terminal Hacks 2 | . . 2 . Branch Access Points 2 | . . 2 . Fabricator Hacks . | . . . . Repair Station Hacks . | . . . . Recycling Unit Hacks . | . . . . Scanalyzer . | . . . . Garrison Access Hacks . | . . . . Unauthorized Hacks . | . . . . Terminals . | . . . . Fabricators . | . . . . Repair Stations . | . . . . Recycling Units . | . . . . Scanalyzers . | . . . . Garrison Access . | . . . . Data Cores Recovered . | . . . . Used . | . . . . Hacking Detections 2 | . 1 1 . Full Trace Events 1 | . 1 . . Feedback Events . | . . . . Feedback Blocked . | . . . . Robot Schematics Acquired . | . . . . Robots Built . | . . . . Authchips . | . . . . Time . | . . . . Total Robot Build Rating . | . . . . Part Schematics Acquired . | . . . . Parts Built . | . . . . Authchips . | . . . . Time . | . . . . Total Part Build Rating . | . . . . Part Studies Acquired . | . . . . Parts Repaired . | . . . . Time . | . . . . Parts Recycled . | . . . . Recycled Matter . | . . . . Retrieved Matter . | . . . . Retrieved Components . | . . . . Parts Scanalyzed . | . . . . Part Schematics Acquired . | . . . . Parts Damaged . | . . . . Bothacking | -11 -10 -9 -9 ------------ Run | Yrd Mat Mat Min Used RIF Installer . | . . . . Robots Hacked . | . . . . Non-combat . | . . . . Combat . | . . . . Robot Hacks Applied . | . . . . Relay Couplers Released . | . . . . Fabnet Peak Effective % . | . . . . Robots Rewired . | . . . . Allies Hacked . | . . . . Hacks Repelled . | . . . . Allies | -11 -10 -9 -9 -------- Run | Yrd Mat Mat Min Total Allies . | . . . . Largest Group . | . . . . Highest-Rated Group . | . . . . Highest-Rated Ally . | . . . . Total Orders . | . . . . Ally Attacks . | . . . . Total Damage . | . . . . Kills . | . . . . Allies Corrupted . | . . . . Allies Melted . | . . . . Intel | -11 -10 -9 -9 ------- Run | Yrd Mat Mat Min Active Infowar (turns) . | . . . . Robot Analysis Total . | . . . . Derelict Logs Recovered . | . . . . Drone Launches . | . . . . Drone Recoveries . | . . . . Exploration | -11 -10 -9 -9 ------------- Run | Yrd Mat Mat Min Turns Passed 186 | 10 49 127 . Spaces Moved 432 | 19 97 316 . Core 109 | 19 90 . . Treads . | . . . . Legs . | . . . . Wheels . | . . . . Hover . | . . . . Flight 323 | . 7 316 . Fastest Speed 40 | 50 40 40 . Average Speed 42 | 50 49 40 . Slowest Speed 50 | 50 50 40 . Overloaded Moves . | . . . . Propulsion Burnouts . | . . . . Robots Hopped 11 | . . 11 . Potential Cave-ins . | . . . . Cave-ins Triggered . | . . . . Exploration Rate (%) 17 | 3 20 39 6 Regions Visited 3 Branch Regions 1 Pre-discovered Areas . | . . . . Known Exits Taken 1 | . . 1 . Unknown Exits Taken 2 | 1 1 . . Scrap Searched . | . . . . Spaces Dug . | . . . . Terrain Destroyed . | . . . . Melee . | . . . . Projectile . | . . . . AOE . | . . . . Terrain Rammed . | . . . . Walls Destroyed . | . . . . Machines Disabled . | . . . . Actions | -11 -10 -9 -9 --------- Run | Yrd Mat Mat Min Total 420 | 19 97 304 . Wait . | . . . . Move 407 | 18 96 293 . Hop 11 | . . 11 . Pick Up . | . . . . Fast Attach 1 | . 1 . . Attach . | . . . . Detach . | . . . . Swap . | . . . . Drop . | . . . . Fire . | . . . . Melee . | . . . . Ram 1 | 1 . . . Kick . | . . . . Crush . | . . . . Escape Stasis . | . . . . Rewire . | . . . . Trap . | . . . . Miscellaneous . | . . . . Route ------- -11/Scrapyard -10/Materials -9/Materials (discovered 2 exits: [*Mat] / *Min) -9/Mines History --------- Turn | Location | Event 3 | -11/Scrapyard | Discovered new exit (range 15) 11 | -11/Scrapyard | Entered Materials 50 | -10/Materials | Discovered new exit (range 15) 60 | -10/Materials | Entered another Materials area 62 | -9/Materials | Reached level 2 73 | -9/Materials | Identified exit to Mines 145 | -9/Materials | Discovered new exit (range 3) 187 | -9/Materials | Entered Mines 187 | -9/Mines | Self-destructed Last Messages --------------- M001. 00111_ O-16 Technician locks terminal. 00112_ K-01 Serf collects debris. 00116_ U-05 Engineer works on Processing Tank. 00120_ K-01 Serf collects debris. 00126_ U-05 Engineer works on Processing Tank. 00128_ K-01 Serf collects debris. 00132_ U-05 Engineer works on Processing Tank. 00132_ K-01 Serf collects debris. 00133_ Acquired 82 matter. 00145_ EXIT=FOUND 00156_ O-16 Technician: "IFF HANDSHAKE FAILED. SECURING TERMINAL." 00156_ ALERT: Hostiles spotted, dispatching reinforcements to Terminal M003. 00157_ W-16 Scout sends out distress signal. 00165_ ALERT: Hostiles spotted, dispatching reinforcements to Terminal M004. 00172_ S-10 Pest destroyed. LOCATION=MINES GOAL=ESCAPE Map ----- +----------------------------------------------------+ | | | | | | | | | | | | | ???????????????????????????????????? | | ???????????????????????????????????? | | ???????????????????????????????????? | | ???????????????????????????????????? | | ???????????????????????????????????? | | ???????????????????????????????????? | | ???????????????????????????????????? | | ???????????????????????????????????? | | ???????????????????????????????????? | | ??????????????????????###""###?????? | | ??????????????????????# X #?????? | | ??????????????????????# #####?? | | ??????????????????????# #?? | | ??????????????????????# #?? | | ??????????????????????# #?? | | ??????????????????????# #?? | | ??????????????????????# #?? | | ??????????????????????# #?? | | ??????????????????????# #?? | | ??????????????????????# @ #?? | | ??????????????????????# #?? | | ????????????????????? #?? | | ???????????????????# ## #?? | | ???????????????????#??############?? | | ???????????????????????????????????? | | ???????????????????????????????????? | | ???????????????????????????????????? | | ???????????????????????????????????? | | ???????????????????????????????????? | | ???????????????????????????????????? | | ???????????????????????????????????? | | ???????????????????????????????????? | | ???????????????????????????????????? | | ???????????????????????????????????? | | ???????????????????????????????????? | | ???????????????????????????????????? | | ???????????????????????????????????? | | ???????????????????????????????????? | | ???????????????????????????????????? | | ???????????????????????????????????? | | ???????????????????????????????????? | | ???????????????????????????????????? | | ???????????????????????????????????? | | ???????????????????????????????????? | +----------------------------------------------------+ Best States ------------- Heat Dissipation 25 Energy Generation 5 Energy Capacity 100 Matter Stores 235 Matter Capacity 300 Sight Range 16 Terrain Scan Density 10 Evasion (%) 62 Item Schematics ----------------- None Robot Schematics ------------------ None Fabricated ------------ Nothing Repaired ---------- Nothing Studied --------- None Alien Tech Used ----------------- None Achievements -------------- None Challenges ------------ None RPGLIKE | -11 -10 -9 -9 --------- Run | Yrd Mat Mat Min Levels Raised 1 | . . 1 . XP Earned 4680 | 3000 100 1580 . Upgrades . | . . . . Protomatter Created . | . . . . Protomatter Decayed . | . . . . Game ------ Seed TripodAssemblyGriptreads Manual? 0 Play Time 00:01:36 Cumulative 667.4 hours Start 2026.07.16 @ 08:00:00 End 2026.07.16 @ 08:04:09 Sessions 1 Manual Loads 0 Difficulty Rogue Special Mode Winter2019/RPGLIKE Game No. 313 Rogue 159 Adventurer 154 Explorer 0 Win Type - Total 22 Types 4/5/4/3/2/1/0/1/1/1 Lore% 95 Gallery% 88 Achievement% 68 Wizard Run 0 Options --------- Layout 0 ASCII 0 Keyboard 0 Movement Numpad Keybinds 0 Fullscreen 2 Font 18/SmallcapsGlow Map View 76x50 Zoom Use 0% Tactical HUD 1 Map Filters NONE Filters NONE Steam 1 RUN: dce090ca-8fa9-4031-a903-76be06c6ce75